[Event "45th Sitges Open 2019"]
[Site "Sitges"]
[Date "2019.07.30"]
[Round "9.3"]
[White "Berdayes Ason, Dylan Isidro"]
[Black "Sturt, Raven"]
[Result "0-1"]
[ECO "B31"]
[WhiteElo "2461"]
[BlackElo "2429"]
[Annotator "ChessBase"]
[PlyCount "130"]
[EventDate "2019.07.21"]
[EventType "swiss"]
[EventCountry "ESP"]
[SourceTitle "playchess.com"]
[Source "ChessBase"]
[SourceQuality "1"]
[TimeControl "40/5400+30:1800+30"]

1. e4 {[%emt 0:18:08]} c5 {[%emt 0:00:00]} 2. Nf3 {[%emt 0:00:06]} Nc6 {[%emt 0:00:00]} 3. Bb5 {[%emt 0:00:08]} g6 {[%emt 0:00:00]} 4. Bxc6 {[%emt 0:00:13]} dxc6 {[%emt 0:00:00]} 5. d3 {[%emt 0:00:36]} Bg7 {[%emt 0:00:25]} 6. h3 {[%emt 0:00:02]} Nf6 {[%emt 0:04:39]} 7. Bd2 {[%emt 0:00:07]} Nd7 {[%emt 0:03:21]} 8. Qc1 {[%emt 0:00:02]} O-O {[%emt 0:04:42]} 9. Bh6 {[%emt 0:00:34]} Qa5+ {[%emt 0:01:36]} 10. c3 {[%emt 0:05:39]} Rd8 {[%emt 0:03:27]} 11. Bxg7 {[%emt 0:01:25]} Kxg7 {[%emt 0:00:04]} 12. O-O {[%emt 0:01:57]} Nf8 {[%emt 0:12:21]} 13. Rd1 {[%emt 0:03:30]} Ne6 {[%emt 0:04:43]} 14. Na3 {[%emt 0:00:06]} Qc7 {[%emt 0:01:05]} 15. Nc4 {[%emt 0:21:31]} b6 {[%emt 0:04:38]} 16. Qe3 {[%emt 0:03:46]} Ba6 {[%emt 0:03:02]} 17. g3 {[%emt 0:04:40]} f6 {[%emt 0:06:43]} 18. b3 {[%emt 0:01:47]} Rd7 {[%emt 0:05:53]} 19. d4 {[%emt 0:02:12]} Rad8 {[%emt 0:01:20]} 20. Rd2 {[%emt 0:04:47]} b5 {[%emt 0:10:48]} 21. Nb2 {[%emt 0:00:50]} b4 {[%emt 0:00:07]} 22. dxc5 {[%emt 0:06:02]} Rxd2 {[%emt 0:00:25]} 23. Nxd2 {[%emt 0:00:03]} Qe5 {[%emt 0:01:02]} 24. Rc1 {[%emt 0:05:58]} Qxc5 {[%emt 0:00:13]} 25. Qxc5 {[%emt 0:01:10]} Nxc5 {[%emt 0:00:01]} 26. Nb1 {[%emt 0:04:14]} bxc3 {[%emt 0:11:28]} 27. Rxc3 {[%emt 0:00:01]} Nxe4 {[%emt 0:00:03]} 28. Rxc6 {[%emt 0:00:09]} Bc8 {[%emt 0:00:01]} 29. Rc7 {[%emt 0:03:04]} Kf7 {[%emt 0:00:08]} 30. Kg2 {[%emt 0:01:50]} a6 {[%emt 0:01:20]} 31. Nc3 {[%emt 0:02:30]} Nxc3 {[%emt 0:00:45]} 32. Rxc3 {[%emt 0:00:02]} Bb7+ {[%emt 0:00:02]} 33. Kf1 {[%emt 0:00:46]} Rd2 {[%emt 0:00:41]} 34. Nd3 {[%emt 0:00:38]} Rxa2 {[%emt 0:01:13]} 35. Nc5 {[%emt 0:00:04]} Bc6 {[%emt 0:05:16]} 36. h4 {[%emt 0:00:07]} h5 {[%emt 0:00:37]} 37. Nd3 {[%emt 0:01:52]} Bb5 {[%emt 0:00:54]} 38. Kg2 {[%emt 0:00:03]} e5 {[%emt 0:00:33]} 39. Kf3 {[%emt 0:01:12]} Ke6 {[%emt 0:02:29]} 40. Ke3 {[%emt 0:00:00]} Kf5 {[%emt 0:00:00]} 41. Nc1 {[%emt 0:01:19]} Rb2 {[%emt 0:06:34]} 42. Nd3 {[%emt 0:00:55]} Rb1 {[%emt 0:01:28]} 43. Nc1 {[%emt 0:01:13]} Kg4 {[%emt 0:01:59]} 44. Rc2 {[%emt 0:00:46]} f5 {[%emt 0:03:14]} 45. Rc5 {[%emt 0:02:22]} Rb2 {[%emt 0:02:49]} 46. Rxe5 {[%emt 0:04:36]} Rc2 {[%emt 0:00:18]} 47. Re6 {[%emt 0:00:28]} Rxc1 {[%emt 0:08:28]} 48. Rxg6+ {[%emt 0:00:02]} Kh3 {[%emt 0:00:01]} 49. Rg5 {[%emt 0:00:02]} Rc3+ {[%emt 0:01:00]} 50. Kd4 {[%emt 0:02:53]} Rd3+ {[%emt 0:04:09]} 51. Ke5 {[%emt 0:03:01]} Rxb3 {[%emt 0:02:20]} 52. Rxh5 {[%emt 0:00:09]} Bd3 {[%emt 0:03:22]} 53. Rh8 {[%emt 0:00:59]} Kg4 {[%emt 0:02:03]} 54. Rg8+ {[%emt 0:00:53]} Kf3 {[%emt 0:00:05]} 55. h5 {[%emt 0:00:43]} Rb6 {[%emt 0:01:44]} 56. Rh8 {[%emt 0:01:30]} Kxf2 {[%emt 0:02:43]} 57. h6 {[%emt 0:00:01]} Ke3 {[%emt 0:00:07]} 58. Kd5 {[%emt 0:01:30]} a5 {[%emt 0:05:26]} 59. Kc5 {[%emt 0:00:55]} Rb7 {[%emt 0:00:11]} 60. Kd6 {[%emt 0:04:59]} a4 {[%emt 0:01:20]} 61. h7 {[%emt 0:04:51]} Be4 {[%emt 0:00:06]} 62. g4 {[%emt 0:01:39]} fxg4 {[%emt 0:00:49]} 63. Rg8 {[%emt 0:01:17]} Rxh7 {[%emt 0:00:06]} 64. Rxg4 {[%emt 0:00:05]} a3 {[%emt 0:00:04]} 65. Rg3+ {[%emt 0:01:20]} Bf3 {[%emt 0:00:01]} 0-1

[Event "45th Sitges Open 2019"]
[Site "Sitges"]
[Date "2019.07.30"]
[Round "9.5"]
[White "Pogorelov, Ruslan"]
[Black "Lacasa Diaz, Jose Antonio"]
[Result "1-0"]
[ECO "D34"]
[WhiteElo "2347"]
[BlackElo "2391"]
[Annotator "ChessBase"]
[PlyCount "126"]
[EventDate "2019.07.21"]
[EventType "swiss"]
[EventCountry "ESP"]
[SourceTitle "playchess.com"]
[Source "ChessBase"]
[SourceQuality "1"]
[TimeControl "40/5400+30:1800+30"]

1. Nf3 {[%emt 0:00:00]} d5 {[%emt 0:02:20]} 2. d4 {[%emt 0:00:00]} e6 {[%emt 0:00:15]} 3. c4 {[%emt 0:00:00]} c5 {[%emt 0:00:19]} 4. cxd5 {[%emt 0:00:06]} exd5 {[%emt 0:00:06]} 5. g3 {[%emt 0:00:34]} Nc6 {[%emt 0:00:08]} 6. Bg2 {[%emt 0:00:33]} Nf6 {[%emt 0:00:11]} 7. O-O {[%emt 0:00:28]} Be7 {[%emt 0:00:07]} 8. Nc3 {[%emt 0:00:15]} O-O {[%emt 0:00:09]} 9. Bg5 {[%emt 0:00:22]} c4 {[%emt 0:01:12]} 10. Ne5 {[%emt 0:01:23]} Be6 {[%emt 0:00:35]} 11. Nxc6 {[%emt 0:00:32]} bxc6 {[%emt 0:00:08]} 12. b3 {[%emt 0:05:32]} h6 {[%emt 0:02:01]} 13. Bxf6 {[%emt 0:00:40]} Bxf6 {[%emt 0:00:06]} 14. Na4 {[%emt 0:01:04]} cxb3 {[%emt 0:25:43]} 15. axb3 {[%emt 0:00:08]} Be7 {[%emt 0:00:05]} 16. Rc1 {[%emt 0:03:43]} Qd7 {[%emt 0:10:26]} 17. Nc5 {[%emt 0:01:53]} Bxc5 {[%emt 0:00:07]} 18. Rxc5 {[%emt 0:00:07]} Rfb8 {[%emt 0:00:10]} 19. Qc2 {[%emt 0:01:05]} Rb6 {[%emt 0:00:17]} 20. Ra1 {[%emt 0:04:17]} Bf5 {[%emt 0:06:54]} 21. Qc3 {[%emt 0:02:55]} Rab8 {[%emt 0:01:20]} 22. Ra3 {[%emt 0:00:15]} Qb7 {[%emt 0:00:30]} 23. h4 {[%emt 0:01:10]} Rxb3 {[%emt 0:07:08]} 24. Rxb3 {[%emt 0:00:14]} Qxb3 {[%emt 0:00:04]} 25. Qxb3 {[%emt 0:00:31]} Rxb3 {[%emt 0:00:04]} 26. Rxc6 {[%emt 0:00:10]} Rb1+ {[%emt 0:00:11]} 27. Kh2 {[%emt 0:00:34]} Rd1 {[%emt 0:01:08]} 28. e3 {[%emt 0:09:50]} Rd2 {[%emt 0:00:27]} 29. g4 {[%emt 0:01:33]} Bxg4 {[%emt 0:18:49]} 30. Bxd5 {[%emt 0:00:18]} Bd7 {[%emt 0:06:09]} 31. Rd6 {[%emt 0:15:42]} Be6 {[%emt 0:00:08]} 32. Bxe6 {[%emt 0:00:55]} fxe6 {[%emt 0:00:04]} 33. Rxe6 {[%emt 0:01:08]} Rxf2+ {[%emt 0:00:19]} 34. Kg3 {[%emt 0:00:27]} Rf6 {[%emt 0:02:53]} 35. Re7 {[%emt 0:01:16]} Rf7 {[%emt 0:01:12]} 36. Re5 {[%emt 0:00:09]} a6 {[%emt 0:00:17]} 37. Ra5 {[%emt 0:01:40]} Rf6 {[%emt 0:01:05]} 38. e4 {[%emt 0:00:41]} Kf7 {[%emt 0:03:22]} 39. e5 {[%emt 0:00:27]} Rb6 {[%emt 0:01:16]} 40. Kf4 {[%emt 0:00:00]} g6 {[%emt 0:00:00]} 41. Ke4 {[%emt 0:05:12]} Ke7 {[%emt 0:07:12]} 42. Ra4 {[%emt 0:06:50]} Kd7 {[%emt 0:10:56]} 43. Ra1 {[%emt 0:04:38]} Ke7 {[%emt 0:00:48]} 44. Rc1 {[%emt 0:04:41]} Kd7 {[%emt 0:00:42]} 45. h5 {[%emt 0:00:27]} gxh5 {[%emt 0:01:23]} 46. Rg1 {[%emt 0:00:13]} h4 {[%emt 0:01:13]} 47. Rg7+ {[%emt 0:01:10]} Ke8 {[%emt 0:00:17]} 48. Kf5 {[%emt 0:04:55]} h3 {[%emt 0:00:19]} 49. Rg3 {[%emt 0:00:47]} a5 {[%emt 0:06:21]} 50. Rxh3 {[%emt 0:05:57]} a4 {[%emt 0:01:14]} 51. d5 {[%emt 0:02:22]} Ra6 {[%emt 0:00:40]} 52. Ra3 {[%emt 0:01:36]} Kd7 {[%emt 0:08:51]} 53. d6 {[%emt 0:01:59]} Ra8 {[%emt 0:00:41]} 54. Rc3 {[%emt 0:08:23]} Rf8+ {[%emt 0:06:19]} 55. Ke4 {[%emt 0:00:02]} Ke6 {[%emt 0:02:13]} 56. Rc7 {[%emt 0:01:13]} Re8 {[%emt 0:00:00]} 57. Rh7 {[%emt 0:00:21]} a3 {[%emt 0:00:01]} 58. Rxh6+ {[%emt 0:00:16]} Kf7 {[%emt 0:00:51]} 59. Rf6+ {[%emt 0:03:35]} Kg7 {[%emt 0:00:05]} 60. Rf2 {[%emt 0:00:08]} Ra8 {[%emt 0:00:06]} 61. d7 {[%emt 0:01:53]} a2 {[%emt 0:00:03]} 62. Rxa2 {[%emt 0:00:17]} Rd8 {[%emt 0:00:01]} 63. e6 {[%emt 0:00:19]} Kf6 {[%emt 0:00:05]} 1-0

[Event "45th Sitges Open 2019"]
[Site "Sitges"]
[Date "2019.07.30"]
[Round "9.6"]
[White "Anuj Shrivatri"]
[Black "Cu Hor, Winston Darwin"]
[Result "1-0"]
[ECO "E04"]
[WhiteElo "2372"]
[BlackElo "2335"]
[Annotator "NA"]
[PlyCount "41"]
[EventDate "2019.07.21"]
[EventType "swiss"]
[EventCountry "ESP"]
[SourceTitle "playchess.com"]
[Source "ChessBase"]
[SourceQuality "1"]
[TimeControl "40/5400+30:1800+30"]

1. d4 {[%emt 0:00:00]} Nf6 {[%emt 0:00:00]} 2. Nf3 {[%emt 0:00:00]} e6 {[%emt 0:00:08]} 3. c4 {[%emt 0:00:00]} d5 {[%emt 0:00:05]} 4. g3 {[%emt 0:00:00]} dxc4 {[%emt 0:00:05]} 5. Bg2 {[%emt 0:00:00]} c5 {[%emt 0:00:06]} 6. O-O {[%emt 0:00:11]} Nbd7 {[%emt 0:01:02]} 7. Na3 {[%emt 0:03:50]} Be7 {[%emt 0:03:46]} 8. Nxc4 {[%emt 0:07:21]} O-O {[%emt 0:00:13]} 9. dxc5 {[%emt 0:02:20]} Nxc5 {[%emt 0:00:39]} 10. Nfe5 {[%emt 0:01:30]} Qxd1 {[%emt 0:07:35]} 11. Rxd1 {[%emt 0:00:06]} a5 {[%emt 0:03:37]} 12. Be3 {[%emt 0:03:39]} a4 {[%emt 0:07:06]} 13. Nd6 {[%emt 0:10:57]} Bxd6 {[%emt 0:09:45]} 14. Rxd6 {[%emt 0:00:07]} Ncd7 {[%emt 0:04:07]} 15. Nc4 {[%emt 0:05:59]} Ne8 {[%emt 0:03:43]} 16. Rd2 {[%emt 0:02:06]} Ra6 {[%emt 0:00:40]} 17. Rad1 {[%emt 0:04:23]} b5 {[%emt 0:03:27]} 18. Na3 {[%emt 0:02:14]} b4 {[%emt 0:00:21]} 19. Nb5 {[%emt 0:06:48]} Ra5 {[%emt 0:09:05]} 20. Na7 {[%emt 0:01:15]} Nef6 {[%emt 0:00:38]} 21. Nc6 {[%emt 0:00:53]} 1-0

[Event "45th Sitges Open 2019"]
[Site "Sitges"]
[Date "2019.07.30"]
[Round "9.7"]
[White "Beltran Rueda, Santiago"]
[Black "Gaprindashvili, Valeriane"]
[Result "0-1"]
[ECO "A13"]
[WhiteElo "2326"]
[BlackElo "2368"]
[Annotator "NA"]
[PlyCount "84"]
[EventDate "2019.07.21"]
[EventType "swiss"]
[EventCountry "ESP"]
[SourceTitle "playchess.com"]
[Source "ChessBase"]
[SourceQuality "1"]
[TimeControl "40/5400+30:1800+30"]

1. c4 {[%emt 0:00:00]} e6 {[%emt 0:00:00]} 2. Nf3 {[%emt 0:00:00]} Nf6 {[%emt 0:00:02]} 3. g3 {[%emt 0:00:00]} d5 {[%emt 0:00:21]} 4. d4 {[%emt 0:00:02]} dxc4 {[%emt 0:00:26]} 5. Qa4+ {[%emt 0:01:37]} Bd7 {[%emt 0:01:18]} 6. Qxc4 {[%emt 0:00:08]} Bc6 {[%emt 0:00:04]} 7. Bg2 {[%emt 0:00:16]} Nbd7 {[%emt 0:00:09]} 8. O-O {[%emt 0:00:27]} Bd5 {[%emt 0:01:39]} 9. Qd3 {[%emt 0:01:07]} Be4 {[%emt 0:00:34]} 10. Qd1 {[%emt 0:08:16]} c5 {[%emt 0:00:11]} 11. Nc3 {[%emt 0:00:11]} Bc6 {[%emt 0:00:02]} 12. Bg5 {[%emt 0:04:47]} Be7 {[%emt 0:05:05]} 13. dxc5 {[%emt 0:07:07]} Nxc5 {[%emt 0:04:32]} 14. Bh3 {[%emt 0:11:19]} Nce4 {[%emt 0:09:03]} 15. Nxe4 {[%emt 0:06:34]} Bxe4 {[%emt 0:02:36]} 16. Ne5 {[%emt 0:05:04]} Qa5 {[%emt 0:10:37]} 17. Bxf6 {[%emt 0:00:26]} Rd8 {[%emt 0:00:01]} 18. Qb3 {[%emt 0:02:28]} Bxf6 {[%emt 0:03:51]} 19. Nc4 {[%emt 0:04:00]} Qh5 {[%emt 0:06:35]} 20. Bg2 {[%emt 0:01:38]} Bxg2 {[%emt 0:00:30]} 21. Kxg2 {[%emt 0:00:05]} b5 {[%emt 0:04:17]} 22. Na5 {[%emt 0:01:43]} Qxe2 {[%emt 0:03:57]} 23. Nc6 {[%emt 0:04:47]} Qe4+ {[%emt 0:03:52]} 24. Qf3 {[%emt 0:00:12]} Qxf3+ {[%emt 0:00:08]} 25. Kxf3 {[%emt 0:00:11]} Rd7 {[%emt 0:12:08]} 26. a4 {[%emt 0:06:27]} b4 {[%emt 0:02:03]} 27. Nxb4 {[%emt 0:03:31]} Bxb2 {[%emt 0:08:13]} 28. Rab1 {[%emt 0:04:51]} Bf6 {[%emt 0:02:54]} 29. Rfd1 {[%emt 0:00:20]} Rc7 {[%emt 0:06:43]} 30. Na6 {[%emt 0:01:10]} Rc3+ {[%emt 0:00:11]} 31. Kg2 {[%emt 0:00:23]} O-O {[%emt 0:00:01]} 32. Rb7 {[%emt 0:01:17]} Rc4 {[%emt 0:00:21]} 33. Nb8 {[%emt 0:02:49]} Rfc8 {[%emt 0:07:28]} 34. a5 {[%emt 0:04:38]} h5 {[%emt 0:00:01]} 35. Rdd7 {[%emt 0:03:37]} Ra4 {[%emt 0:04:41]} 36. a6 {[%emt 0:03:30]} Bd4 {[%emt 0:01:13]} 37. Rb5 {[%emt 0:08:30]} Rc2 {[%emt 0:01:32]} 38. Rd8+ {[%emt 0:01:02]} Kh7 {[%emt 0:00:01]} 39. Rxh5+ {[%emt 0:00:14]} Kg6 {[%emt 0:00:02]} 40. Rh4 {[%emt 0:00:00]} Rxf2+ {[%emt 0:00:00]} 41. Kh3 {[%emt 0:03:50]} Raa2 {[%emt 0:10:23]} 42. Rhxd4 {[%emt 0:02:53]} f5 {[%emt 0:00:24]} 0-1

[Event "45th Sitges Open 2019"]
[Site "Sitges"]
[Date "2019.07.30"]
[Round "9.8"]
[White "Lopez Gonzalez, Abel Fabian"]
[Black "Mateus, Alejandro"]
[Result "1/2-1/2"]
[ECO "E34"]
[WhiteElo "2355"]
[BlackElo "2334"]
[Annotator "ChessBase"]
[PlyCount "116"]
[EventDate "2019.07.21"]
[EventType "swiss"]
[EventCountry "ESP"]
[SourceTitle "playchess.com"]
[Source "ChessBase"]
[SourceQuality "1"]
[TimeControl "40/5400+30:1800+30"]

1. d4 {[%emt 0:12:57]} Nf6 {[%emt 0:00:00]} 2. c4 {[%emt 0:00:18]} e6 {[%emt 0:00:17]} 3. Nc3 {[%emt 0:00:07]} Bb4 {[%emt 0:00:25]} 4. Qc2 {[%emt 0:00:09]} d5 {[%emt 0:00:40]} 5. cxd5 {[%emt 0:00:08]} Qxd5 {[%emt 0:01:13]} 6. a3 {[%emt 0:00:21]} Bxc3+ {[%emt 0:00:43]} 7. bxc3 {[%emt 0:00:02]} c5 {[%emt 0:04:49]} 8. f3 {[%emt 0:00:07]} cxd4 {[%emt 0:04:21]} 9. cxd4 {[%emt 0:00:02]} Nc6 {[%emt 0:01:00]} 10. e3 {[%emt 0:01:04]} O-O {[%emt 0:04:21]} 11. Bc4 {[%emt 0:01:48]} Qd6 {[%emt 0:04:01]} 12. Ne2 {[%emt 0:06:51]} e5 {[%emt 0:06:19]} 13. O-O {[%emt 0:02:52]} Be6 {[%emt 0:04:40]} 14. dxe5 {[%emt 0:12:49]} Qxe5 {[%emt 0:03:45]} 15. Rb1 {[%emt 0:01:34]} Bf5 {[%emt 0:14:13]} 16. Bd3 {[%emt 0:32:07]} Bxd3 {[%emt 0:00:37]} 17. Qxd3 {[%emt 0:00:02]} Rfd8 {[%emt 0:08:07]} 18. Qc4 {[%emt 0:00:02]} Rac8 {[%emt 0:06:16]} 19. Rxb7 {[%emt 0:02:59]} Nd5 {[%emt 0:04:10]} 20. Qe4 {[%emt 0:05:35]} Qxe4 {[%emt 0:07:51]} 21. fxe4 {[%emt 0:00:02]} Nf6 {[%emt 0:04:06]} 22. Bb2 {[%emt 0:02:09]} Rd7 {[%emt 0:00:22]} 23. Rxd7 {[%emt 0:01:01]} Nxd7 {[%emt 0:00:05]} 24. Rc1 {[%emt 0:01:23]} Ne7 {[%emt 0:01:35]} 25. Rxc8+ {[%emt 0:05:44]} Nxc8 {[%emt 0:00:06]} 26. Bd4 {[%emt 0:00:10]} f6 {[%emt 0:01:38]} 27. Nc3 {[%emt 0:01:33]} a6 {[%emt 0:03:50]} 28. Kf2 {[%emt 0:03:39]} Nd6 {[%emt 0:00:49]} 29. Ke2 {[%emt 0:00:27]} Kf7 {[%emt 0:02:58]} 30. Kd3 {[%emt 0:00:23]} Ke6 {[%emt 0:00:41]} 31. Kc2 {[%emt 0:01:39]} Nb5 {[%emt 0:05:52]} 32. Nb1 {[%emt 0:00:48]} Ne5 {[%emt 0:01:07]} 33. Kb3 {[%emt 0:02:57]} Ng4 {[%emt 0:03:43]} 34. Kb4 {[%emt 0:02:21]} Nxh2 {[%emt 0:00:08]} 35. Ka5 {[%emt 0:00:02]} Nc7 {[%emt 0:01:30]} 36. Kb6 {[%emt 0:01:09]} Kd7 {[%emt 0:00:12]} 37. Kb7 {[%emt 0:00:25]} Ng4 {[%emt 0:01:23]} 38. Bb6 {[%emt 0:00:09]} Nb5 {[%emt 0:00:33]} 39. a4 {[%emt 0:00:40]} Nd6+ {[%emt 0:00:19]} 40. Kxa6 {[%emt 0:00:00]} Kc6 {[%emt 0:00:00]} 41. Nc3 {[%emt 0:01:07]} Nf2 {[%emt 0:05:49]} 42. Nb5 {[%emt 0:04:19]} Nfxe4 {[%emt 0:02:57]} 43. Nd4+ {[%emt 0:06:38]} Kd5 {[%emt 0:01:15]} 44. a5 {[%emt 0:02:56]} Nd2 {[%emt 0:04:21]} 45. Bc7 {[%emt 0:05:09]} N6c4 {[%emt 0:09:19]} 46. Kb5 {[%emt 0:03:13]} Nxa5 {[%emt 0:03:01]} 47. Bxa5 {[%emt 0:00:07]} Nf1 {[%emt 0:03:20]} 48. Nc2 {[%emt 0:01:34]} Ke4 {[%emt 0:00:46]} 49. Kc4 {[%emt 0:01:11]} Nxe3+ {[%emt 0:00:37]} 50. Nxe3 {[%emt 0:00:08]} Kxe3 {[%emt 0:00:01]} 51. Bb6+ {[%emt 0:01:03]} Kf4 {[%emt 0:01:12]} 52. Bc7+ {[%emt 0:00:42]} Kg4 {[%emt 0:00:59]} 53. Kd4 {[%emt 0:03:57]} h5 {[%emt 0:00:19]} 54. Ke3 {[%emt 0:00:30]} h4 {[%emt 0:00:51]} 55. Kf2 {[%emt 0:00:38]} g5 {[%emt 0:00:52]} 56. Kg1 {[%emt 0:02:01]} h3 {[%emt 0:00:23]} 57. g3 {[%emt 0:00:23]} f5 {[%emt 0:00:27]} 58. Kh2 {[%emt 0:00:07]} f4 {[%emt 0:00:08]} 1/2-1/2